bitfinex/quotes_SOLUSD_20250717
["timestamp","ask_amount","ask_price","bid_price","bid_amount"]
[1752736918876,0.06,172.05,172.04,8.11958195]
[1752736919997,0.06,172.05,172.04,8.83958195]
[1752736920191,0.06,172.05,172.04,14.65218367]
[1752736920987,0.06,172.05,172.04,22.77176562]
[1752736921400,0.2,172.1,172.04,47.12634959]
[1752736921596,0.06,172.15,172.09,8.11958195]
[1752736921795,0.06,172.15,172.14,8.11958195]
[1752736922199,0.06,172.15,172.14,14.64880699]
[1752736922704,0.06,172.15,172.14,6.52922504]
[1752736922900,0.06,172.15,172.14,14.64880699]
[1752736923201,0.06,172.15,172.14,20.92180699]
[1752736923699,0.06,172.15,172.14,51.64180699]
[1752736924787,0.06,172.15,172.14,43.52222504]
[1752736924980,0.06,172.15,172.14,51.64180699]
[1752736925695,0.72,172.15,172.11,8.11958195]
[1752736926207,14.5891254,172.14,172.07,6.8583]
[1752736926404,8.11958195,172.11,172.06,8.11958195]
[1752736926609,0.66,172.1,172.07,30.0]
[1752736926787,0.66,172.1,172.06,8.11958195]
[1752736926989,0.66,172.1,172.05,30.7]
[1752736927192,0.66,172.1,172.05,39.53958195]
[1752736927391,0.66,172.09,172.05,30.7]
[1752736927593,0.66,172.08,172.05,30.7]
[1752736928082,0.66,172.1,172.05,38.81958195]
[1752736928288,6.4706532,172.1,172.05,38.81958195]
[1752736928487,14.59023515,172.1,172.05,39.53958195]
[1752736928701,6.4706532,172.1,172.05,39.53958195]
[1752736928890,14.59023515,172.1,172.05,39.53958195]
[1752736929692,0.66,172.09,172.05,30.7]
[1752736930314,13.93023515,172.1,172.05,38.81958195]
[1752736930500,13.92984507,172.11,172.06,0.72]
[1752736931020,14.58984507,172.11,172.06,0.72]
[1752736931193,14.58984507,172.11,172.04,0.03]
[1752736931194,8.77958195,172.1,172.04,0.03]
[1752736931398,8.11958195,172.09,172.04,0.03]
[1752736931816,16.84468397,172.15,172.06,8.11958195]
[1752736932115,26.66,172.13,172.07,8.11958195]
[1752736932289,0.5,172.09,172.07,8.11958195]
[1752736932494,0.5,172.09,172.07,8.83958195]
[1752736932694,0.5,172.09,172.08,39.53958195]
[1752736933118,0.66,172.13,172.08,39.53958195]
[1752736933415,0.66,172.13,172.08,31.42]
[1752736933716,0.66,172.13,172.08,45.35077912]
[1752736934113,14.58917211,172.13,172.08,39.53958195]
[1752736934414,0.66,172.12,172.08,30.7]
[1752736934711,8.83958195,172.15,172.09,8.83958195]
[1752736935089,8.11958195,172.14,172.09,8.11958195]
[1752736935287,0.66,172.13,172.08,38.81958195]
[1752736935702,6.46968254,172.13,172.08,39.53958195]
[1752736935901,0.06,172.15,172.1,8.11958195]
[1752736936102,0.06,172.15,172.12,8.11958195]
[1752736936304,0.06,172.15,172.12,8.83958195]
[1752736937097,0.06,172.15,172.13,8.83958195]
[1752736937494,0.06,172.15,172.14,0.72]
[1752736939011,0.06,172.15,172.14,8.83958195]
[1752736939321,0.06,172.15,172.14,0.72]
[1752736939620,0.06,172.15,172.14,8.83958195]
[1752736939834,0.06,172.15,172.13,5.80950411]
[1752736940005,0.06,172.15,172.13,8.83958195]
[1752736940402,0.06,172.15,172.12,30.68]
[1752736940696,0.06,172.15,172.12,45.32943773]
[1752736941014,0.06,172.15,172.12,39.51958195]
[1752736942308,0.06,172.15,172.13,8.11958195]
[1752736942930,0.06,172.15,172.13,8.76958195]
[1752736943220,0.06,172.15,172.14,8.76958195]
[1752736943600,0.06,172.15,172.14,8.11958195]
[1752736944499,0.06,172.15,172.13,8.11958195]
[1752736944698,0.06,172.15,172.12,30.66]
[1752736945529,0.06,172.15,172.12,38.77958195]
[1752736945724,0.06,172.15,172.12,39.42958195]
[1752736949027,0.06,172.15,172.13,8.76958195]
[1752736949218,0.06,172.15,172.14,8.11958195]
[1752736949419,0.06,172.15,172.14,8.76958195]
[1752736950638,0.06,172.15,172.14,14.57880699]
[1752736955024,0.06,172.15,172.14,31.36349096]
[1752736955221,0.06,172.15,172.14,62.00349096]
[1752736955431,0.06,172.15,172.14,96.12307291]
[1752736955756,0.06,172.22,172.17,16.78468397]
[1752736955930,0.06,172.22,172.21,8.11958195]
[1752736956247,0.06,172.22,172.21,38.75958195]
[1752736956552,0.06,172.22,172.21,39.40958195]
[1752736956730,0.06,172.22,172.21,45.21644566]
[1752736957042,0.06,172.22,172.21,62.00112963]
[1752736959026,0.06,172.22,172.21,31.36112963]
[1752736959226,0.06,172.22,172.21,61.98112963]
[1752736962550,0.06,172.22,172.21,56.17426592]
[1752736962749,0.06,172.22,172.21,31.27]
[1752736962945,0.06,172.22,172.21,30.62]
[1752736963334,0.75,172.22,172.21,30.62]
[1752736963744,0.06,172.22,172.21,38.73958195]
[1752736964252,0.06,172.22,172.21,30.62]
[1752736965156,0.75,172.22,172.21,30.62]
[1752736965554,0.75,172.22,172.2,30.62]
[1752736966549,0.75,172.22,172.19,8.11958195]
[1752736966758,0.75,172.22,172.2,30.62]
[1752736966933,0.75,172.22,172.2,35.58380041]
[1752736967967,6.55656564,172.22,172.2,30.62]
[1752736968639,0.75,172.22,172.2,30.62]
[1752736969258,6.55656194,172.22,172.2,30.62]
[1752736969461,5.86656194,172.22,172.17,26.0]
[1752736969647,5.65380041,172.21,172.18,30.6]
[1752736969848,0.69,172.2,172.18,30.6]
[1752736970059,0.69,172.2,172.17,30.6]
[1752736970962,10.8304529,172.22,172.17,35.56380041]
[1752736971259,0.69,172.21,172.17,35.56380041]
[1752736972270,6.49704253,172.21,172.17,35.56380041]
[1752736972935,0.69,172.21,172.17,35.56380041]
[1752736973160,6.49694961,172.21,172.17,35.56380041]
[1752736974269,1.21,172.2,172.17,35.56380041]
[1752736974565,0.71,172.19,172.17,35.56380041]
[1752736975466,6.51699362,172.21,172.17,35.56380041]
[1752736975664,6.51699362,172.21,172.18,30.6]
[1752736976169,0.71,172.21,172.18,30.6]
[1752736976350,0.06,172.22,172.19,5.63380041]
[1752736976668,0.06,172.22,172.2,30.6]
[1752736977341,0.77,172.22,172.2,30.6]
[1752736977943,0.06,172.22,172.21,5.63380041]
[1752736978151,0.06,172.22,172.21,4.96380041]
[1752736978543,0.06,172.22,172.2,42.04094477]
[1752736978744,0.06,172.22,172.21,5.63380041]
[1752736978945,0.06,172.22,172.21,22.41848438]
[1752736979683,0.06,172.22,172.21,28.22534809]
[1752736982363,0.06,172.22,172.21,30.58]
[1752736982573,0.06,172.22,172.21,35.54380041]
[1752736982876,0.06,172.22,172.21,30.58]
[1752736983078,0.77,172.22,172.21,35.54380041]
[1752736983276,0.77,172.22,172.21,30.58]
[1752736983646,0.06,172.22,172.21,35.54380041]
[1752736984562,0.06,172.22,172.21,42.02066412]
[1752736988084,0.06,172.22,172.21,58.80534809]
[1752736989985,0.06,172.22,172.21,84.80534809]
[1752736991968,0.06,172.22,172.21,79.17154768]
[1752736992287,0.06,172.22,172.21,84.13534809]
[1752736993083,0.77,172.22,172.2,4.96380041]
[1752736993385,0.77,172.22,172.21,30.56]
[1752736993588,0.77,172.22,172.21,36.36686371]
[1752736993796,0.06,172.22,172.21,41.33066412]
[1752736995190,0.06,172.22,172.21,30.56]
[1752736995490,0.77,172.22,172.2,10.77087923]
[1752736995687,0.77,172.22,172.21,30.54]
[1752736996293,0.06,172.22,172.21,30.54]
[1752736996975,0.06,172.22,172.21,35.50380041]
[1752736997175,0.06,172.22,172.21,41.31066412]
[1752736997508,0.06,172.22,172.21,41.98066412]
[1752736998708,0.06,172.22,172.21,84.76534809]
[1752737001370,0.06,172.22,172.21,58.76534809]
[1752737001567,0.2,172.28,172.25,42.78468397]
[1752737001793,0.2,172.28,172.27,4.96380041]
[1752737001985,0.2,172.28,172.27,35.50380041]
[1752737002894,0.2,172.28,172.27,41.30864164]
[1752737003785,0.2,172.28,172.27,36.34484123]
[1752737004092,0.2,172.28,172.27,41.30864164]
[1752737004864,0.91,172.28,172.24,26.0]
[1752737005068,0.71,172.27,172.25,35.50380041]
[1752737005296,0.71,172.27,172.26,4.96380041]
[1752737005468,0.2,172.28,172.26,4.96380041]
[1752737005677,0.2,172.28,172.27,35.48380041]
[1752737006970,0.2,172.28,172.27,41.28864164]
[1752737008083,0.2,172.28,172.27,41.98864164]
[1752737008472,0.2,172.28,172.27,36.32484123]
[1752737008672,0.2,172.28,172.27,41.28864164]
[1752737009086,0.2,172.28,172.27,41.98864164]
[1752737009291,0.2,172.28,172.27,41.28864164]
[1752737009478,0.2,172.28,172.27,36.32484123]
[1752737009678,0.2,172.28,172.27,41.28864164]
[1752737011004,0.2,172.28,172.27,36.32484123]
[1752737011208,0.2,172.28,172.27,41.28864164]
[1752737012475,0.2,172.28,172.27,58.77332561]
[1752737012890,0.2,172.28,172.27,84.77332561]
[1752737013489,0.2,172.28,172.27,58.77332561]
[1752737014391,0.06,172.29,172.28,16.78468397]
[1752737014598,1e-08,172.29,172.28,22.44848438]
[1752737014993,0.1,172.33,172.28,22.44848438]
[1752737014994,0.1,172.33,172.32,16.78468397]
[1752737015194,0.1,172.33,172.32,52.24848438]
[1752737015403,0.1,172.33,172.32,52.94848438]
[1752737015612,0.1,172.33,172.32,58.75164129]
[1752737016128,1e-08,172.33,172.32,63.30777443]
[1752737016788,0.06,172.4,172.36,16.78468397]
[1752737017091,0.06,172.4,172.39,4.96380041]
[1752737017288,0.06,172.4,172.39,35.46380041]
[1752737017710,0.06,172.4,172.39,41.26460092]
[1752737017900,0.77,172.4,172.39,30.5]
[1752737018289,0.77,172.4,172.36,5.80170821]
[1752737018535,4.96380041,172.39,172.37,30.48]
[1752737018686,4.96380041,172.39,172.36,30.48]
[1752737018886,0.71,172.38,172.36,30.48]
[1752737019092,0.71,172.37,172.36,30.48]
[1752737021119,0.71,172.37,172.36,36.28181016]
[1752737021415,0.71,172.39,172.36,36.28181016]
[1752737021598,5.02380041,172.4,172.36,36.28181016]
[1752737021791,0.71,172.38,172.36,36.28181016]
[1752737021994,0.71,172.38,172.36,41.24561057]
[1752737022214,0.06,172.4,172.37,4.96380041]
[1752737022416,0.71,172.39,172.38,30.48]
[1752737025899,0.71,172.39,172.37,35.44380041]
[1752737026118,0.06,172.4,172.38,4.96380041]
[1752737026420,0.06,172.4,172.39,35.42380041]
[1752737028921,0.06,172.4,172.39,30.46]
[1752737029710,0.06,172.4,172.39,41.22460092]
[1752737031429,0.06,172.4,172.39,35.42380041]
[1752737031825,0.06,172.4,172.39,41.22460092]
[1752737033431,0.06,172.4,172.39,35.42380041]
[1752737033598,0.06,172.4,172.39,30.46]
[1752737033799,0.06,172.4,172.39,36.26080051]
[1752737033999,0.06,172.4,172.39,41.22460092]
[1752737034221,0.72,172.4,172.39,5.80080051]
[1752737034426,0.72,172.4,172.39,36.24080051]
[1752737035237,0.72,172.4,172.39,30.44]
[1752737036544,0.72,172.4,172.39,36.24080051]
[1752737036851,0.72,172.4,172.39,30.44]
[1752737038224,0.06,172.4,172.39,36.24080051]
[1752737039213,0.06,172.4,172.39,30.44]
[1752737040135,0.72,172.4,172.39,30.44]
[1752737040813,0.06,172.4,172.39,30.44]
[1752737041122,0.72,172.4,172.39,30.44]
[1752737041524,11.48434608,172.4,172.32,16.78468397]
[1752737041706,0.66,172.39,172.36,4.96380041]
[1752737041909,5.62380041,172.38,172.33,4.96380041]
[1752737042230,5.62380041,172.38,172.29,14.50975236]
[1752737042231,5.80282017,172.33,172.26,4.99380041]
[1752737042530,0.66,172.32,172.26,30.45]
[1752737042732,4.96380041,172.28,172.26,30.45]
[1752737043124,0.66,172.27,172.26,30.45]
[1752737045626,5.62380041,172.29,172.26,30.45]
[1752737045955,0.66,172.28,172.26,30.45]
[1752737046160,0.66,172.31,172.26,36.25514103]
[1752737046335,0.66,172.33,172.29,4.96380041]
[1752737046642,0.66,172.35,172.3,35.38380041]
[1752737046846,0.66,172.34,172.3,35.38380041]
[1752737047142,0.66,172.33,172.3,35.38380041]
[1752737047320,4.96380041,172.34,172.3,30.42]
[1752737047521,0.66,172.32,172.3,30.42]
[1752737048623,4.96380041,172.34,172.3,36.22374745]
[1752737048945,0.66,172.33,172.3,41.18754786]
[1752737049617,5.62380041,172.35,172.3,41.90754786]
[1752737049818,0.66,172.35,172.31,4.96380041]
[1752737050043,0.66,172.37,172.34,4.96380041]
[1752737050349,0.66,172.37,172.34,35.38380041]
[1752737050529,1.5306,172.38,172.34,30.42]
[1752737050530,0.66,172.36,172.34,30.42]
[1752737050863,5.62380041,172.36,172.34,30.42]
[1752737051027,4.96380041,172.36,172.32,30.42]
[1752737051342,4.96380041,172.36,172.31,4.96380041]
[1752737051343,4.96380041,172.33,172.26,0.75]
[1752737051662,21.83467163,172.38,172.28,4.96380041]
[1752737051663,0.66,172.32,172.28,4.96380041]
[1752737051863,0.66,172.32,172.29,36.22416726]
[1752737052219,0.66,172.34,172.3,4.96380041]
[1752737053348,0.66,172.34,172.3,10.7676016]
[1752737053533,0.66,172.34,172.31,4.96380041]
[1752737053957,7.33184864,172.38,172.33,4.96380041]
[1752737054167,2.1906,172.38,172.34,4.96380041]
[1752737054446,0.66,172.37,172.34,30.4]
[1752737055449,0.66,172.39,172.36,4.96380041]
[1752737056236,0.66,172.39,172.35,4.96380041]
[1752737056644,0.66,172.38,172.35,4.96380041]
[1752737057654,5.68380041,172.4,172.36,4.96380041]
[1752737058439,0.72,172.4,172.36,4.96380041]
[1752737058758,0.72,172.4,172.36,10.76558268]
[1752737059256,0.72,172.4,172.36,4.96380041]
[1752737059622,0.72,172.4,172.37,4.96380041]
[1752737059827,0.72,172.4,172.36,6.52174074]
[1752737060135,0.72,172.4,172.36,5.68380041]
[1752737060552,0.72,172.4,172.36,4.96380041]
[1752737060947,6.52055967,172.4,172.35,5.80204193]
[1752737061151,0.66,172.39,172.35,10.76584234]
[1752737061357,0.66,172.39,172.35,11.46584234]
[1752737061557,0.66,172.39,172.36,4.96380041]
[1752737062050,0.06,172.4,172.38,4.96380041]
[1752737062233,0.06,172.4,172.37,35.36380041]
[1752737062439,0.68,172.39,172.37,30.4]
[1752737062942,5.80081441,172.39,172.37,30.4]
[1752737063156,0.68,172.38,172.35,30.38]
[1752737063531,0.68,172.38,172.35,35.34380041]
[1752737063832,10.82434851,172.4,172.35,36.04380041]
[1752737064044,6.5405481,172.4,172.36,4.96380041]
[1752737065346,0.74,172.4,172.36,4.96380041]
[1752737065548,0.06,172.4,172.37,5.66380041]
[1752737066941,0.06,172.4,172.39,4.96380041]
[1752737067461,0.06,172.4,172.39,22.44848438]
[1752737069054,0.06,172.4,172.39,28.24928489]
[1752737075274,0.06,172.4,172.39,23.28548448]
[1752737075477,0.06,172.4,172.39,28.24928489]
[1752737077052,0.06,172.4,172.39,23.28548448]
[1752737077370,0.06,172.4,172.39,28.24928489]
[1752737085959,0.06,172.4,172.39,48.58548448]
[1752737086164,0.06,172.4,172.39,67.10460092]
[1752737086376,0.06,172.4,172.39,84.58928489]
[1752737088185,0.06,172.4,172.39,58.58928489]
[1752737089801,0.06,172.4,172.39,57.88928489]
[1752737089983,0.06,172.4,172.39,58.58928489]
[1752737092526,0.1,172.46,172.39,73.09128616]
[1752737092687,0.1,172.46,172.45,21.74848438]
[1752737092890,0.1,172.46,172.45,52.06848438]
[1752737094179,0.1,172.46,172.45,57.86726663]
[1752737094378,0.79,172.46,172.44,5.79903318]
[1752737094596,0.1,172.46,172.45,35.28380041]
[1752737095079,0.79,172.46,172.45,30.32]
[1752737095484,0.79,172.46,172.45,35.28380041]
[1752737095696,0.1,172.46,172.45,35.28380041]
[1752737096300,0.79,172.46,172.45,30.32]
[1752737096496,0.79,172.46,172.45,35.28380041]
[1752737097074,0.79,172.46,172.45,30.32]
[1752737097682,0.79,172.46,172.45,35.28380041]
[1752737097910,0.1,172.46,172.45,36.11878225]
[1752737098202,0.1,172.46,172.45,41.08258266]
[1752737100789,0.1,172.46,172.45,57.86726663]
[1752737100985,0.1,172.46,172.45,84.55726663]
[1752737101181,0.1,172.46,172.45,58.55726663]
[1752737101706,0.1,172.46,172.45,83.84726663]
[1752737101875,0.1,172.46,172.45,84.53726663]
[1752737102078,0.1,172.46,172.45,79.57346622]
[1752737102307,0.1,172.46,172.45,84.53726663]
[1752737104305,0.06,172.47,172.45,58.53726663]
[1752737104486,1e-08,172.47,172.46,22.43848438]
[1752737104686,0.75,172.54,172.5,42.78468397]
[1752737104891,0.06,172.54,172.5,30.96380041]
[1752737105094,0.06,172.54,172.51,30.3]
[1752737105313,0.75,172.53,172.51,30.3]
[1752737105514,0.69,172.52,172.51,41.06038921]
[1752737105812,0.06,172.53,172.51,41.06038921]
[1752737106113,0.75,172.53,172.52,4.96380041]
[1752737107913,0.75,172.53,172.51,30.3]
[1752737108087,6.54613508,172.53,172.47,26.0]
[1752737108287,4.96380041,172.51,172.48,56.3]
[1752737108517,0.69,172.5,172.48,56.3]
[1752737108693,0.69,172.5,172.48,26.0]
[1752737108895,4.96380041,172.52,172.48,26.0]
[1752737109102,0.69,172.49,172.48,26.0]
[1752737110392,10.8199815,172.53,172.48,36.76157406]
[1752737110701,0.69,172.51,172.48,36.76157406]
[1752737110894,0.69,172.51,172.49,30.3]
[1752737111117,0.69,172.51,172.5,4.96380041]
[1752737111294,0.06,172.53,172.5,4.96380041]
[1752737111490,0.75,172.53,172.51,35.24380041]
[1752737112804,0.06,172.53,172.52,4.96380041]
[1752737113823,5.71380041,172.53,172.46,1.5559]
[1752737114115,0.69,172.52,172.47,56.28]
[1752737114319,5.65380041,172.52,172.48,30.28]
[1752737114513,5.65380041,172.51,172.48,30.28]
[1752737114713,0.69,172.5,172.48,30.28]
[1752737114914,0.69,172.5,172.43,20.9875889]
[1752737114915,4.96380041,172.49,172.43,5.79945485]
[1752737115108,0.69,172.48,172.44,52.02848438]
[1752737115309,0.69,172.47,172.45,4.96380041]
[1752737115510,5.65380041,172.51,172.46,41.04191254]
[1752737115714,5.65380041,172.5,172.46,36.07811213]
[1752737116027,0.69,172.49,172.46,36.07811213]
[1752737116427,5.65380041,172.49,172.46,30.28]
[1752737116623,0.69,172.48,172.45,36.07868437]
[1752737116932,0.69,172.47,172.45,36.07873104]
[1752737117907,0.69,172.46,172.44,26.0]
[1752737118112,0.69,172.45,172.44,26.0]
[1752737119210,0.69,172.47,172.44,26.0]
[1752737119431,0.69,172.46,172.44,26.0]
[1752737119713,0.69,172.45,172.44,26.0]
[1752737122827,0.69,172.45,172.43,30.28]
[1752737123314,0.69,172.45,172.41,26.0]
[1752737123520,5.65380041,172.45,172.4,10.79422678]
[1752737123711,0.68,172.44,172.41,30.28]
[1752737124016,4.96380041,172.43,172.4,30.31]
[1752737124335,5.64380041,172.42,172.4,0.03]
[1752737124533,0.68,172.42,172.4,0.03]
[1752737124739,0.68,172.41,172.4,5.83046403]
[1752737124931,0.68,172.41,172.4,0.03]
[1752737127540,0.68,172.43,172.4,0.03]
[1752737128122,0.68,172.42,172.4,0.03]
[1752737128619,0.68,172.41,172.4,0.03]
[1752737131145,5.64380041,172.41,172.4,0.03]
[1752737131334,0.68,172.41,172.4,0.03]
[1752737131536,5.64380041,172.41,172.4,0.03]
[1752737132648,0.68,172.41,172.4,0.03]
[1752737132945,5.64380041,172.41,172.4,0.03]
[1752737133648,11.44392801,172.41,172.4,0.03]
[1752737133819,5.64380041,172.41,172.4,0.03]
[1752737134017,0.68,172.41,172.4,0.03]
[1752737134222,5.64380041,172.41,172.4,0.03]
[1752737134438,0.68,172.41,172.4,0.03]
[1752737135034,6.4801276,172.41,172.4,0.03]
[1752737135237,11.44392801,172.41,172.4,0.03]
[1752737135948,0.68,172.41,172.4,0.03]
[1752737137656,148.1,172.46,172.4,0.03]
[1752737137657,0.68,172.43,172.4,4.99380041]
[1752737137867,0.68,172.43,172.41,4.96380041]
[1752737138926,0.68,172.43,172.4,0.03]
[1752737139130,0.68,172.43,172.41,4.96380041]
[1752737139426,0.68,172.42,172.41,4.96380041]
[1752737139632,5.64380041,172.42,172.4,0.03]
[1752737139833,4.96380041,172.41,172.4,0.03]
[1752737140131,0.68,172.41,172.4,0.03]
[1752737140552,5.64380041,172.41,172.4,0.03]
[1752737141843,6.4801276,172.41,172.4,0.03]
[1752737142043,11.44392801,172.41,172.4,0.03]
[1752737143461,28.22861198,172.41,172.4,1e-08]
[1752737143966,16.78468397,172.4,172.33,0.03]
[1752737144125,4.96380041,172.34,172.33,0.03]
[1752737144833,5.64380041,172.34,172.33,0.03]
[1752737145543,6.48248346,172.34,172.33,0.03]
[1752737145738,11.44628387,172.34,172.33,0.03]
[1752737147041,6.48248346,172.34,172.33,0.03]
[1752737147246,11.44628387,172.34,172.33,0.03]
[1752737147856,6.48248346,172.34,172.33,0.03]
[1752737148159,148.78,172.36,172.33,0.03]
[1752737149048,0.68,172.35,172.33,0.03]
[1752737150241,6.48220273,172.35,172.33,0.03]
[1752737150560,153.06380041,172.36,172.33,0.03]
[1752737150762,0.68,172.35,172.33,0.03]
[1752737151833,158.86561396,172.36,172.33,0.03]
[1752737152041,0.67,172.35,172.33,0.03]
[1752737152256,11.43604164,172.35,172.33,0.03]
[1752737152738,0.67,172.34,172.33,0.03]
[1752737153359,5.63380041,172.34,172.33,0.03]
[1752737154750,11.43628387,172.34,172.33,0.03]
[1752737158375,6.47248346,172.34,172.33,0.03]
[1752737158583,153.73380041,172.36,172.33,0.03]
[1752737158885,148.77,172.36,172.33,0.03]
[1752737159856,148.1,172.36,172.33,0.69]
[1752737160568,0.67,172.38,172.35,4.96380041]
[1752737161102,30.3,172.41,172.34,0.66]
[1752737161403,4.96380041,172.42,172.35,0.66]
[1752737161554,0.67,172.4,172.37,4.96380041]
[1752737162373,0.67,172.39,172.36,4.96380041]
[1752737162578,4.96380041,172.41,172.36,4.96380041]
[1752737162579,0.67,172.38,172.36,4.96380041]
[1752737163411,4.96380041,172.4,172.35,4.96380041]
[1752737163579,0.67,172.37,172.34,4.96380041]
[1752737163889,4.96380041,172.38,172.33,4.99380041]
[1752737164093,0.67,172.36,172.33,4.99380041]
[1752737164395,4.96380041,172.38,172.33,10.79634909]
[1752737164396,0.67,172.37,172.33,10.79634909]
[1752737164960,0.67,172.37,172.34,4.96380041]
[1752737165159,0.67,172.39,172.35,4.96380041]
[1752737165384,11.43398322,172.41,172.37,4.96380041]
[1752737165661,0.67,172.4,172.36,5.62380041]
[1752737166081,0.67,172.4,172.36,4.96380041]
[1752737166273,0.67,172.39,172.36,4.96380041]
[1752737166664,0.67,172.38,172.34,35.24380041]
[1752737166863,5.63380041,172.38,172.34,30.28]
[1752737167063,0.67,172.37,172.34,30.28]
[1752737167369,4.96380041,172.39,172.34,35.24380041]
[1752737167662,0.67,172.38,172.34,35.24380041]
[1752737167885,4.96380041,172.39,172.34,30.28]
[1752737168084,0.67,172.37,172.34,41.04627961]
[1752737168451,5.63380041,172.39,172.34,41.04627961]
[1752737168661,6.47023749,172.41,172.37,4.96380041]
[1752737168888,0.67,172.41,172.37,4.96380041]
[1752737169157,6.47013046,172.41,172.37,4.96380041]
[1752737170078,0.06,172.4,172.37,4.96380041]
[1752737170392,0.06,172.4,172.38,4.96380041]
[1752737170763,0.06,172.4,172.38,10.76486437]
[1752737170958,0.06,172.4,172.39,5.62380041]
[1752737171158,0.06,172.4,172.37,5.80137485]
[1752737171366,5.63380041,172.39,172.37,30.28]
[1752737171571,5.63380041,172.38,172.33,5.83270757]
[1752737171892,5.63380041,172.37,172.33,36.11270757]
[1752737172057,5.63380041,172.36,172.33,30.31]
[1752737172254,4.96380041,172.37,172.33,36.1128201]
[1752737172490,5.63380041,172.37,172.33,30.31]
[1752737172665,0.67,172.37,172.33,30.31]
[1752737172865,5.63380041,172.37,172.33,30.31]
[1752737173084,5.63380041,172.37,172.33,36.11278443]
[1752737173280,5.63380041,172.37,172.33,36.77278443]
[1752737173487,4.96380041,172.37,172.34,0.66]
[1752737174184,5.63380041,172.39,172.34,5.62380041]
[1752737174373,0.67,172.38,172.34,11.42616651]
[1752737174572,10.76460268,172.39,172.34,11.42616651]
[1752737174765,11.43460268,172.39,172.34,11.42616651]
[1752737174965,5.63380041,172.39,172.34,11.42616651]
[1752737175474,11.43460966,172.39,172.34,11.42616651]
[1752737175675,4.96380041,172.37,172.33,30.31]
[1752737175988,5.63380041,172.37,172.33,30.97]
[1752737176304,4.96380041,172.34,172.33,0.03]
[1752737176806,4.96380041,172.35,172.33,0.03]
[1752737177180,5.63380041,172.35,172.33,0.03]
[1752737177481,4.96380041,172.34,172.33,0.03]
[1752737177686,5.63380041,172.34,172.33,0.03]
[1752737178091,0.67,172.34,172.33,0.03]
[1752737178590,0.67,172.36,172.33,0.03]
[1752737178912,5.63380041,172.36,172.33,0.03]
[1752737179113,0.67,172.35,172.33,0.03]
[1752737179999,5.63380041,172.34,172.33,0.03]
[1752737184206,11.45628387,172.34,172.33,0.03]
[1752737188308,5.65380041,172.34,172.33,0.03]
[1752737189009,11.45628387,172.34,172.33,0.03]
[1752737191422,5.65380041,172.34,172.33,0.03]
[1752737191827,11.45628387,172.34,172.33,0.03]
[1752737192320,5.65380041,172.36,172.33,0.03]
[1752737192694,0.69,172.35,172.33,0.03]
[1752737193422,10.7658919,172.36,172.33,0.03]
[1752737193632,148.1,172.37,172.34,5.63380041]
[1752737193822,148.1,172.37,172.35,4.96380041]
[1752737194000,11.51439848,172.4,172.35,5.63380041]
[1752737194312,0.69,172.39,172.35,5.63380041]
[1752737195011,6.49113702,172.38,172.35,4.96380041]
[1752737195322,0.69,172.37,172.33,35.25380041]
[1752737196916,6.49151292,172.37,172.33,35.25380041]
[1752737197311,11.45531333,172.37,172.33,35.25380041]
[1752737197631,11.45531333,172.37,172.33,30.29]
[1752737198736,5.65380041,172.37,172.33,0.03]